[Event "Championnat d'Europe Rapide"]
[Date "2024.12.07"]
[White "Lauda, Alexandr"]
[Black "Aizenberg, Benny"]
[WhiteElo "2255"]
[BlackElo "2425"]
[Round "4.46"]
[Result "0-1"]
[TimeControl "900+10"]

1. e4 {[%emt 00:00:03] [%clk 00:15:17]} c5 {[%emt 00:00:01] [%clk 00:15:19]} 2.
Nf3 {[%emt 00:00:02] [%clk 00:15:25]} d6 {[%emt 00:00:01] [%clk 00:15:28]} 3. d4
{[%emt 00:00:03] [%clk 00:15:34]} cxd4 {[%clk 00:15:36]} 4. Nxd4 {[%emt
00:00:01] [%clk 00:15:43]} Nf6 {[%emt 00:00:01] [%clk 00:15:45]} 5. Nc3 {[%clk
00:15:52]} a6 {[%emt 00:00:02] [%clk 00:15:54]} 6. Be2 {[%emt 00:00:04] [%clk
00:15:57]} e5 {[%emt 00:00:03] [%clk 00:16:01]} 7. Nb3 {[%emt 00:00:02] [%clk
00:16:05]} Be7 {[%emt 00:00:02] [%clk 00:16:08]} 8. O-O {[%emt 00:00:02] [%clk
00:16:13]} O-O {[%emt 00:00:02] [%clk 00:16:16]} 9. Kh1 {[%emt 00:00:02] [%clk
00:16:21]} b5 {[%emt 00:00:14] [%clk 00:16:12]} 10. a4 {[%emt 00:00:03] [%clk
00:16:28]} b4 {[%emt 00:00:27] [%clk 00:15:55]} 11. Nd5 {[%emt 00:00:03] [%clk
00:16:35]} Bb7 {[%emt 00:00:05] [%clk 00:16:00]} 12. Nxe7+ {[%emt 00:00:08]
[%clk 00:16:38]} Qxe7 {[%emt 00:00:02] [%clk 00:16:08]} 13. f3 {[%emt 00:00:03]
[%clk 00:16:45]} a5 {[%emt 00:00:43] [%clk 00:15:36]} 14. Be3 {[%emt 00:00:08]
[%clk 00:16:47]} Nbd7 {[%emt 00:00:11] [%clk 00:15:35]} 15. Bb5 {[%emt 00:00:35]
[%clk 00:16:22]} Rfc8 {[%emt 00:00:49] [%clk 00:14:55]} 16. Rf2 {[%emt 00:00:21]
[%clk 00:16:12]} d5 {[%emt 00:01:25] [%clk 00:13:40]} 17. Bxd7 {[%emt 00:03:05]
[%clk 00:13:18]} Qxd7 {[%emt 00:00:06] [%clk 00:13:43]} 18. Nc5 {[%emt 00:00:03]
[%clk 00:13:25]} Qe7 {[%emt 00:00:04] [%clk 00:13:48]} 19. Nxb7 {[%emt 00:00:11]
[%clk 00:13:24]} Qxb7 {[%emt 00:00:03] [%clk 00:13:56]} 20. Bg5 {[%emt 00:00:05]
[%clk 00:13:29]} Qb6 {[%emt 00:00:10] [%clk 00:13:56]} 21. Rd2 {[%emt 00:00:41]
[%clk 00:12:58]} d4 {[%emt 00:00:40] [%clk 00:13:25]} 22. Qe1 {[%emt 00:00:17]
[%clk 00:12:51]} Ne8 {[%emt 00:00:36] [%clk 00:13:00]} 23. f4 {[%emt 00:01:11]
[%clk 00:11:50]} f6 {[%emt 00:01:48] [%clk 00:11:22]} 24. Bh4 {[%emt 00:00:02]
[%clk 00:11:58]} Nd6 {[%emt 00:00:02] [%clk 00:11:31]} 25. b3 {[%emt 00:01:14]
[%clk 00:10:54]} Rc3 {[%emt 00:00:14] [%clk 00:11:26]} 26. fxe5 {[%emt 00:00:55]
[%clk 00:10:09]} fxe5 {[%emt 00:00:05] [%clk 00:11:31]} 27. Re2 {[%emt 00:01:55]
[%clk 00:08:24]} Rac8 {[%emt 00:00:35] [%clk 00:11:06]} 28. Qf2 {[%emt 00:04:21]
[%clk 00:04:13]} Rf8 {[%emt 00:00:39] [%clk 00:10:36]} 29. Qe1 {[%emt 00:00:15]
[%clk 00:04:08]} Qc6 {[%emt 00:00:17] [%clk 00:10:29]} 30. Be7 {[%emt 00:00:11]
[%clk 00:04:08]} Rc8 {[%emt 00:00:17] [%clk 00:10:22]} 31. Bxd6 {[%emt 00:00:33]
[%clk 00:03:45]} Qxd6 {[%emt 00:00:02] [%clk 00:10:30]} 32. Qf2 {[%emt 00:00:02]
[%clk 00:03:53]} Qf6 {[%emt 00:00:58] [%clk 00:09:42]} 33. Qg1 {[%emt 00:02:13]
[%clk 00:01:51]} Rxc2 {[%emt 00:00:59] [%clk 00:08:52]} 34. Rf1 {[%emt 00:00:01]
[%clk 00:02:00]} Qh4 {[%emt 00:02:16] [%clk 00:06:46]} 35. Rxc2 {[%emt 00:01:09]
[%clk 00:01:02]} Rxc2 {[%emt 00:00:04] [%clk 00:06:51]} 36. Rc1 {[%emt 00:00:02]
[%clk 00:01:10]} Qxe4 {[%emt 00:00:49] [%clk 00:06:12]} 37. Re1 {[%emt 00:00:05]
[%clk 00:01:15]} Re2 {[%emt 00:00:22] [%clk 00:06:00]} 38. Rc1 {[%emt 00:00:05]
[%clk 00:01:20]} h6 {[%emt 00:00:03] [%clk 00:06:06]} 39. h3 {[%emt 00:00:38]
[%clk 00:00:52]} d3 {[%emt 00:00:23] [%clk 00:05:53]} 40. Qc5 {[%emt 00:00:23]
[%clk 00:00:39]} Qxg2# {[%emt 00:00:03] [%clk 00:06:00]} 0-1

[Site "Europe Echecs"]

[Event "Championnat d'Europe Rapide"]
[Date "2024.12.07"]
[White "Malicka, Maria"]
[Black "Stefanova, Antoaneta"]
[WhiteElo "2206"]
[BlackElo "2418"]
[Round "4.47"]
[Result "1/2-1/2"]
[TimeControl "900+10"]

1. e4 {[%emt 00:01:12] [%clk 00:14:05]} e5 {[%emt 00:00:02] [%clk 00:15:18]} 2.
Nf3 {[%emt 00:00:02] [%clk 00:14:13]} Nc6 {[%emt 00:00:01] [%clk 00:15:27]} 3.
Bb5 {[%emt 00:00:01] [%clk 00:14:22]} a6 {[%emt 00:00:02] [%clk 00:15:36]} 4.
Ba4 {[%clk 00:14:31]} Nge7 {[%emt 00:00:02] [%clk 00:15:44]} 5. Nc3 {[%emt
00:00:22] [%clk 00:14:19]} d6 {[%emt 00:00:58] [%clk 00:14:56]} 6. O-O {[%emt
00:00:11] [%clk 00:14:18]} Bd7 {[%emt 00:02:03] [%clk 00:13:03]} 7. Re1 {[%emt
00:02:27] [%clk 00:12:01]} Ng6 {[%emt 00:02:25] [%clk 00:10:48]} 8. Nd5 {[%emt
00:00:49] [%clk 00:11:22]} b5 {[%emt 00:01:22] [%clk 00:09:36]} 9. Bb3 {[%emt
00:00:01] [%clk 00:11:31]} Na5 {[%emt 00:00:03] [%clk 00:09:43]} 10. c3 {[%emt
00:00:18] [%clk 00:11:21]} c6 {[%emt 00:00:26] [%clk 00:09:28]} 11. Ne3 {[%emt
00:00:06] [%clk 00:11:25]} Nxb3 {[%emt 00:00:35] [%clk 00:09:04]} 12. axb3
{[%emt 00:00:01] [%clk 00:11:34]} Be7 {[%emt 00:02:11] [%clk 00:07:03]} 13. d4
{[%emt 00:00:11] [%clk 00:11:33]} O-O {[%emt 00:01:20] [%clk 00:05:53]} 14. Nf5
{[%emt 00:01:59] [%clk 00:09:43]} a5 {[%emt 00:00:07] [%clk 00:05:56]} 15. dxe5
{[%emt 00:01:27] [%clk 00:08:26]} dxe5 {[%emt 00:00:16] [%clk 00:05:50]} 16.
Nxe7+ {[%emt 00:00:02] [%clk 00:08:34]} Qxe7 {[%emt 00:00:02] [%clk 00:05:58]}
17. Bg5 {[%emt 00:00:18] [%clk 00:08:26]} f6 {[%emt 00:00:09] [%clk 00:06:00]}
18. Be3 {[%emt 00:00:01] [%clk 00:08:35]} Rfb8 {[%emt 00:00:58] [%clk 00:05:12]}
19. Qc2 {[%emt 00:00:18] [%clk 00:08:27]} Be6 {[%emt 00:00:19] [%clk 00:05:03]}
20. Nd2 {[%emt 00:00:22] [%clk 00:08:14]} Qf7 {[%emt 00:00:35] [%clk 00:04:38]}
21. b4 {[%emt 00:00:25] [%clk 00:07:59]} a4 {[%emt 00:00:13] [%clk 00:04:36]}
22. Bc5 {[%emt 00:01:04] [%clk 00:07:04]} Nf4 {[%emt 00:00:33] [%clk 00:04:13]}
23. Be3 {[%emt 00:00:12] [%clk 00:07:01]} g5 {[%emt 00:00:39] [%clk 00:03:44]}
24. g3 {[%emt 00:01:26] [%clk 00:05:45]} Ng6 {[%emt 00:00:49] [%clk 00:03:05]}
25. Bc5 {[%emt 00:00:51] [%clk 00:05:04]} Kg7 {[%emt 00:00:10] [%clk 00:03:06]}
26. Nf1 {[%emt 00:00:08] [%clk 00:05:05]} Rd8 {[%emt 00:01:50] [%clk 00:01:26]}
27. Ne3 {[%emt 00:00:10] [%clk 00:05:05]} Nh8 {[%emt 00:00:18] [%clk 00:01:18]}
28. Rad1 {[%emt 00:00:58] [%clk 00:04:17]} Qh5 {[%emt 00:00:17] [%clk 00:01:11]}
29. Rxd8 {[%emt 00:03:08] [%clk 00:01:20]} Rxd8 {[%clk 00:01:20]} 30. Rd1 {[%clk
00:01:30]} Rxd1+ {[%emt 00:00:30] [%clk 00:01:01]} 31. Qxd1 {[%emt 00:00:01]
[%clk 00:01:38]} Qxd1+ {[%emt 00:00:02] [%clk 00:01:09]} 32. Nxd1 {[%emt
00:00:01] [%clk 00:01:47]} Bg4 {[%emt 00:00:06] [%clk 00:01:14]} 33. Ne3 {[%emt
00:00:06] [%clk 00:01:51]} Bf3 {[%emt 00:00:03] [%clk 00:01:21]} 34. Nf5+ {[%emt
00:00:09] [%clk 00:01:52]} Kf7 {[%emt 00:00:02] [%clk 00:01:29]} 35. Nd6+ {[%emt
00:00:21] [%clk 00:01:41]} Ke6 {[%emt 00:00:02] [%clk 00:01:38]} 36. Kf1 {[%emt
00:00:56] [%clk 00:00:54]} Nf7 {[%emt 00:00:20] [%clk 00:01:28]} 37. Nxf7 {[%emt
00:00:08] [%clk 00:00:56]} Kxf7 {[%emt 00:00:01] [%clk 00:01:37]} 38. Ke1 {[%emt
00:00:08] [%clk 00:00:58]} Ke6 {[%emt 00:00:02] [%clk 00:01:45]} 39. Kd2 {[%emt
00:00:02] [%clk 00:01:05]} Bxe4 {[%emt 00:00:02] [%clk 00:01:54]} 40. Ke3 {[%emt
00:00:02] [%clk 00:01:13]} Bb1 {[%emt 00:00:36] [%clk 00:01:27]} 41. Bb6 {[%emt
00:00:29] [%clk 00:00:55]} g4 {[%emt 00:00:12] [%clk 00:01:25]} 42. Bd8 {[%emt
00:00:29] [%clk 00:00:37]} f5 {[%emt 00:00:07] [%clk 00:01:28]} 43. Bc7 {[%emt
00:00:03] [%clk 00:00:44]} Be4 {[%emt 00:00:10] [%clk 00:01:27]} 44. Bb8 {[%emt
00:00:03] [%clk 00:00:52]} Kd5 {[%emt 00:00:05] [%clk 00:01:32]} 45. Bc7 {[%emt
00:01:01]} Bg2 {[%emt 00:00:04] [%clk 00:00:40]} 46. Bb8 {[%emt 00:00:03] [%clk
00:01:06]} Be4 {[%emt 00:00:09] [%clk 00:00:41]} 47. Bc7 {[%emt 00:00:02] [%clk
00:01:14]} h5 {[%emt 00:00:06] [%clk 00:00:45]} 48. Bb8 {[%emt 00:00:03] [%clk
00:01:21]} h4 {[%emt 00:00:09] [%clk 00:00:46]} 49. gxh4 {[%emt 00:00:47] [%clk
00:00:45]} f4+ {[%emt 00:00:01] [%clk 00:00:55]} 50. Kd2 {[%emt 00:00:09] [%clk
00:00:45]} Bg6 {[%emt 00:00:02] [%clk 00:01:03]} 51. Bc7 {[%emt 00:00:10] [%clk
00:00:45]} Ke4 {[%emt 00:00:03] [%clk 00:01:09]} 52. Ke2 {[%emt 00:00:08] [%clk
00:00:47]} Bf7 {[%emt 00:00:05] [%clk 00:01:15]} 53. Bd6 {[%emt 00:00:08] [%clk
00:00:49]} Bh5 {[%emt 00:00:08] [%clk 00:01:17]} 54. Kd2 {[%emt 00:00:24] [%clk
00:00:34]} Kf5 {[%emt 00:00:09] [%clk 00:01:18]} 55. Bc7 {[%emt 00:00:10] [%clk
00:00:34]} Bf7 {[%emt 00:00:23] [%clk 00:01:05]} 56. Kd3 {[%emt 00:00:06] [%clk
00:00:39]} Bg6 {[%emt 00:00:53] [%clk 00:00:23]} 57. Kd2 {[%emt 00:00:05] [%clk
00:00:44]} Ke4 {[%emt 00:00:02] [%clk 00:00:30]} 58. Ke2 {[%emt 00:00:04] [%clk
00:00:50]} Be8 {[%emt 00:00:03] [%clk 00:00:38]} 59. Bb8 {[%emt 00:00:06] [%clk
00:00:54]} Bf7 {[%emt 00:00:02] [%clk 00:00:45]} 60. Bc7 {[%emt 00:00:02] [%clk
00:01:03]} Kf5 {[%emt 00:00:16] [%clk 00:00:39]} 61. Kd3 {[%emt 00:00:10] [%clk
00:01:02]} Bc4+ {[%emt 00:00:15] [%clk 00:00:34]} 62. Kd2 {[%emt 00:00:01] [%clk
00:01:11]} Bf7 {[%emt 00:00:09] [%clk 00:00:35]} 63. Kd3 {[%emt 00:00:01] [%clk
00:01:20]} Bc4+ {[%emt 00:00:02] [%clk 00:00:43]} 64. Kd2 {[%clk 00:01:30]} Bf7
{[%emt 00:00:01] [%clk 00:00:52]} 65. Kd3 {[%clk 00:01:39]} 1/2-1/2

[Site "Europe Echecs"]

[Event "Championnat d'Europe Rapide"]
[Date "2024.12.07"]
[White "Costachi, Mihnea"]
[Black "Iskos, Alexandros"]
[WhiteElo "2464"]
[BlackElo "2132"]
[Round "4.48"]
[Result "1-0"]
[TimeControl "900+10"]

1. d4 {[%emt 02:11:44] [%clk 00:15:19]} Nf6 {[%clk 00:15:19]} 2. c4 {[%emt
00:00:02] [%clk 00:15:26]} e6 {[%emt 00:00:01] [%clk 00:15:28]} 3. Nf3 {[%emt
00:00:03] [%clk 00:15:34]} d5 {[%emt 00:00:08] [%clk 00:15:29]} 4. Nc3 {[%emt
00:00:02] [%clk 00:15:42]} a6 {[%emt 00:00:10] [%clk 00:15:29]} 5. cxd5 {[%emt
00:00:06] [%clk 00:15:46]} exd5 {[%emt 00:00:01] [%clk 00:15:38]} 6. Bg5 {[%emt
00:00:02] [%clk 00:15:54]} Be7 {[%emt 00:00:45] [%clk 00:15:03]} 7. Qc2 {[%emt
00:00:02] [%clk 00:16:02]} h6 {[%emt 00:00:16] [%clk 00:14:57]} 8. Bh4 {[%emt
00:00:04] [%clk 00:16:08]} O-O {[%emt 00:00:08] [%clk 00:15:00]} 9. e3 {[%emt
00:00:02] [%clk 00:16:16]} Re8 {[%emt 00:00:58] [%clk 00:14:11]} 10. Bd3 {[%emt
00:00:03] [%clk 00:16:23]} c6 {[%emt 00:02:06] [%clk 00:12:16]} 11. O-O {[%emt
00:00:14] [%clk 00:16:18]} Ne4 {[%emt 00:01:49] [%clk 00:10:37]} 12. Bxe7 {[%emt
00:00:06] [%clk 00:16:22]} Qxe7 {[%emt 00:00:05] [%clk 00:10:42]} 13. Bxe4
{[%emt 00:00:02] [%clk 00:16:29]} dxe4 {[%emt 00:00:02] [%clk 00:10:50]} 14. Nd2
{[%emt 00:00:24] [%clk 00:16:16]} f5 {[%emt 00:00:07] [%clk 00:10:54]} 15. Nc4
{[%emt 00:00:07] [%clk 00:16:18]} Be6 {[%emt 00:01:56] [%clk 00:09:08]} 16. Nb6
{[%emt 00:00:08] [%clk 00:16:19]} Ra7 {[%emt 00:00:01] [%clk 00:09:17]} 17. Nca4
{[%emt 00:00:14] [%clk 00:16:15]} Nd7 {[%emt 00:00:33] [%clk 00:08:54]} 18. a3
{[%emt 00:02:01] [%clk 00:14:24]} a5 {[%emt 00:00:43] [%clk 00:08:20]} 19. Nxd7
{[%emt 00:00:56] [%clk 00:13:38]} Qxd7 {[%emt 00:00:19] [%clk 00:08:11]} 20.
Rac1 {[%emt 00:00:35] [%clk 00:13:13]} Qd5 {[%emt 00:01:21] [%clk 00:06:59]} 21.
Qe2 {[%emt 00:00:47] [%clk 00:12:36]} Qb5 {[%emt 00:02:24] [%clk 00:04:46]} 22.
Qd1 {[%emt 00:01:08] [%clk 00:11:38]} Bb3 {[%emt 00:00:50] [%clk 00:04:07]} 23.
Nc3 {[%emt 00:00:02] [%clk 00:11:46]} Qc4 {[%emt 00:02:19] [%clk 00:01:58]} 24.
Qd2 {[%emt 00:01:22] [%clk 00:10:34]} Qe6 {[%emt 00:00:38] [%clk 00:01:30]} 25.
Ne2 {[%emt 00:00:02] [%clk 00:10:42]} g5 {[%emt 00:01:14] [%clk 00:00:26]} 26.
Ng3 {[%emt 00:00:54] [%clk 00:09:58]} Bd5 {[%emt 00:00:09] [%clk 00:00:27]} 27.
Ne2 {[%emt 00:01:21] [%clk 00:08:47]} b5 {[%emt 00:00:17] [%clk 00:00:21]} 28.
Rc5 {[%emt 00:00:17] [%clk 00:08:39]} a4 {[%emt 00:00:09] [%clk 00:00:22]} 29.
Nc3 {[%emt 00:00:04] [%clk 00:08:45]} Rd7 {[%emt 00:00:14] [%clk 00:00:18]} 30.
Rc1 {[%emt 00:00:18] [%clk 00:08:36]} Bc4 {[%emt 00:00:05] [%clk 00:00:23]} 31.
Nxa4 {[%emt 00:00:57] [%clk 00:07:49]} Rd5 {[%emt 00:00:21] [%clk 00:00:13]} 32.
Rxd5 {[%emt 00:01:12] [%clk 00:06:47]} cxd5 {[%emt 00:00:03] [%clk 00:00:20]}
33. Nc5 {[%emt 00:00:07] [%clk 00:06:50]} Qf7 {[%emt 00:00:12] [%clk 00:00:17]}
34. b3 {[%emt 00:00:03] [%clk 00:06:58]} Bd3 {[%emt 00:00:11] [%clk 00:00:16]}
35. Nxd3 {[%emt 00:00:02] [%clk 00:07:06]} exd3 {[%clk 00:00:25]} 36. Qxd3
{[%emt 00:00:02] [%clk 00:07:14]} f4 {[%emt 00:00:01] [%clk 00:00:34]} 37. exf4
{[%emt 00:00:29] [%clk 00:06:54]} gxf4 {[%emt 00:00:22] [%clk 00:00:22]} 38.
Qxb5 {[%emt 00:00:25] [%clk 00:06:38]} f3 {[%emt 00:00:08] [%clk 00:00:24]} 39.
g3 {[%emt 00:00:16] [%clk 00:06:32]} Qe6 {[%emt 00:00:07] [%clk 00:00:28]} 40.
a4 {[%emt 00:01:00] [%clk 00:05:42]} Rd8 {[%emt 00:00:19] [%clk 00:00:19]} 41.
a5 {[%emt 00:00:33] [%clk 00:05:19]} Qh3 {[%emt 00:00:01] [%clk 00:00:28]} 42.
Qf1 {[%emt 00:00:04] [%clk 00:05:24]} Qg4 {[%emt 00:00:21] [%clk 00:00:17]} 43.
Qd3 {[%emt 00:00:16] [%clk 00:05:18]} Rf8 {[%emt 00:00:14] [%clk 00:00:13]} 44.
a6 {[%emt 00:00:46] [%clk 00:04:42]} Qh3 {[%emt 00:00:12] [%clk 00:00:11]} 45.
Qf1 {[%emt 00:00:09] [%clk 00:04:41]} Qe6 {[%emt 00:00:12] [%clk 00:00:00]} 1-0

[Site "Europe Echecs"]

[Event "Championnat d'Europe Rapide"]
[Date "2024.12.07"]
[White "Mcgowan, Daniel"]
[Black "Vuckovic, Zarko"]
[WhiteElo "2089"]
[BlackElo "2334"]
[Round "4.49"]
[Result "0-1"]
[TimeControl "900+10"]

1. e4 {[%emt 00:00:03] [%clk 00:15:17]} c5 {[%emt 00:00:01] [%clk 00:15:19]} 2.
Nf3 {[%emt 00:00:02] [%clk 00:15:25]} e6 {[%emt 00:00:01] [%clk 00:15:28]} 3. b3
{[%emt 00:00:03] [%clk 00:15:33]} Nc6 {[%clk 00:15:36]} 4. Bb2 {[%emt 00:00:02]
[%clk 00:15:41]} d6 {[%emt 00:00:02] [%clk 00:15:44]} 5. Nc3 {[%emt 00:00:26]
[%clk 00:15:25]} Nf6 {[%emt 00:00:08] [%clk 00:15:46]} 6. Bb5 {[%emt 00:00:07]
[%clk 00:15:28]} e5 {[%emt 00:00:08] [%clk 00:15:48]} 7. h3 {[%emt 00:00:14]
[%clk 00:15:23]} Be7 {[%emt 00:00:11] [%clk 00:15:47]} 8. O-O {[%emt 00:01:00]
[%clk 00:14:33]} O-O {[%emt 00:00:03] [%clk 00:15:54]} 9. Re1 {[%emt 00:00:04]
[%clk 00:14:39]} a6 {[%emt 00:01:06] [%clk 00:14:59]} 10. Bf1 {[%emt 00:00:04]
[%clk 00:14:44]} Re8 {[%emt 00:00:05] [%clk 00:15:04]} 11. Nb1 {[%emt 00:04:43]
[%clk 00:10:11]} Bf8 {[%emt 00:00:09] [%clk 00:15:05]} 12. c3 {[%emt 00:00:06]
[%clk 00:10:16]} b6 {[%emt 00:00:59] [%clk 00:14:17]} 13. d3 {[%emt 00:00:16]
[%clk 00:10:09]} h6 {[%emt 00:00:55] [%clk 00:13:32]} 14. Nbd2 {[%emt 00:00:11]
[%clk 00:10:08]} Bb7 {[%emt 00:01:16] [%clk 00:12:27]} 15. Nc4 {[%emt 00:02:07]
[%clk 00:08:11]} Qc7 {[%emt 00:00:14] [%clk 00:12:23]} 16. Ne3 {[%emt 00:00:30]
[%clk 00:07:51]} Rad8 {[%emt 00:00:02] [%clk 00:12:31]} 17. Qc2 {[%emt 00:00:27]
[%clk 00:07:34]} d5 {[%emt 00:00:55] [%clk 00:11:46]} 18. exd5 {[%emt 00:00:11]
[%clk 00:07:33]} Nxd5 {[%emt 00:00:02] [%clk 00:11:55]} 19. Rad1 {[%emt
00:00:15] [%clk 00:07:28]} Nf4 {[%emt 00:00:15] [%clk 00:11:49]} 20. g3 {[%emt
00:02:24] [%clk 00:05:15]} Ne6 {[%emt 00:01:27] [%clk 00:10:32]} 21. Bg2 {[%emt
00:00:03] [%clk 00:05:21]} g6 {[%emt 00:00:20] [%clk 00:10:23]} 22. Ng4 {[%emt
00:02:48] [%clk 00:02:43]} Bg7 {[%emt 00:00:24] [%clk 00:10:09]} 23. Qc1 {[%emt
00:00:21] [%clk 00:02:32]} h5 {[%emt 00:00:48] [%clk 00:09:31]} 24. Ngh2 {[%emt
00:00:19] [%clk 00:02:23]} Re7 {[%emt 00:02:02] [%clk 00:07:40]} 25. a3 {[%emt
00:00:25] [%clk 00:02:08]} Red7 {[%emt 00:00:16] [%clk 00:07:33]} 26. Qe3 {[%emt
00:00:28] [%clk 00:01:49]} a5 {[%emt 00:00:23] [%clk 00:07:20]} 27. Bf1 {[%emt
00:00:30] [%clk 00:01:29]} Kh7 {[%emt 00:01:08] [%clk 00:06:23]} 28. Ng5+ {[%emt
00:00:26] [%clk 00:01:13]} Nxg5 {[%emt 00:00:03] [%clk 00:06:29]} 29. Qxg5
{[%emt 00:00:02] [%clk 00:01:21]} Bh6 {[%emt 00:00:43] [%clk 00:05:57]} 30. Qh4
{[%emt 00:00:03] [%clk 00:01:28]} Ne7 {[%emt 00:00:28] [%clk 00:05:40]} 31. g4
{[%emt 00:00:45] [%clk 00:00:52]} Rg8 {[%emt 00:01:30] [%clk 00:04:20]} 32. Bc1
{[%emt 00:00:19] [%clk 00:00:44]} Bxc1 {[%emt 00:03:57] [%clk 00:00:33]} 33.
Rxc1 {[%emt 00:00:02] [%clk 00:00:52]} Kg7 {[%emt 00:00:01] [%clk 00:00:42]} 34.
d4 {[%emt 00:00:12] [%clk 00:00:49]} exd4 {[%emt 00:00:08] [%clk 00:00:44]} 35.
cxd4 {[%emt 00:00:02] [%clk 00:00:58]} Rh8 {[%emt 00:00:02] [%clk 00:00:52]} 36.
dxc5 {[%emt 00:00:23] [%clk 00:00:44]} bxc5 {[%emt 00:00:01] [%clk 00:01:01]}
37. Qg5 {[%emt 00:00:12] [%clk 00:00:42]} Nd5 {[%emt 00:00:08] [%clk 00:01:04]}
38. Bg2 {[%emt 00:00:07] [%clk 00:00:44]} f6 {[%emt 00:00:20] [%clk 00:00:54]}
39. Qh4 {[%emt 00:00:26] [%clk 00:00:30]} Nf4 {[%clk 00:01:03]} 40. Qg3 {[%emt
00:00:27] [%clk 00:00:13]} Bxg2 {[%emt 00:00:07] [%clk 00:01:06]} 41. gxh5
{[%emt 00:00:09] [%clk 00:00:14]} Rxh5 {[%emt 00:00:04] [%clk 00:01:12]} 42. Ng4
{[%emt 00:00:05] [%clk 00:00:18]} Rxh3 {[%emt 00:00:06] [%clk 00:01:16]} 0-1

[Site "Europe Echecs"]

[Event "Championnat d'Europe Rapide"]
[Date "2024.12.07"]
[White "Djukic, Sandra"]
[Black "Koelle, Tobias"]
[WhiteElo "2080"]
[BlackElo "2437"]
[Round "4.50"]
[Result "0-1"]
[TimeControl "900+10"]

1. d4 {[%emt 02:01:55] [%clk 00:15:19]} Nf6 {[%clk 00:15:18]} 2. c4 {[%emt
00:00:01] [%clk 00:15:28]} e6 {[%emt 00:00:02] [%clk 00:15:27]} 3. Nc3 {[%clk
00:15:37]} Bb4 {[%emt 00:00:04] [%clk 00:15:35]} 4. Bd2 {[%emt 00:00:03] [%clk
00:15:42]} O-O {[%emt 00:00:03] [%clk 00:15:41]} 5. a3 {[%emt 00:00:02] [%clk
00:15:51]} Bxc3 {[%emt 00:00:05] [%clk 00:15:46]} 6. Bxc3 {[%emt 00:00:01] [%clk
00:16:00]} b6 {[%emt 00:00:17] [%clk 00:15:38]} 7. Nf3 {[%emt 00:00:05] [%clk
00:16:05]} Bb7 {[%emt 00:00:03] [%clk 00:15:45]} 8. e3 {[%emt 00:00:09] [%clk
00:16:05]} Ne4 {[%emt 00:00:08] [%clk 00:15:47]} 9. Qc2 {[%emt 00:00:06] [%clk
00:16:10]} Nxc3 {[%emt 00:00:05] [%clk 00:15:52]} 10. Qxc3 {[%emt 00:00:01]
[%clk 00:16:18]} d6 {[%emt 00:00:26] [%clk 00:15:35]} 11. Be2 {[%emt 00:00:06]
[%clk 00:16:24]} Nd7 {[%emt 00:00:02] [%clk 00:15:41]} 12. O-O {[%emt 00:00:14]
[%clk 00:16:22]} a5 {[%emt 00:00:40] [%clk 00:15:10]} 13. b3 {[%emt 00:00:02]
[%clk 00:16:30]} f5 {[%emt 00:00:31] [%clk 00:14:48]} 14. Nd2 {[%emt 00:01:41]
[%clk 00:15:00]} Qh4 {[%emt 00:01:14] [%clk 00:13:44]} 15. Bf3 {[%emt 00:00:12]
[%clk 00:14:59]} Bxf3 {[%emt 00:00:06] [%clk 00:13:47]} 16. Nxf3 {[%emt
00:00:01] [%clk 00:15:08]} Qh5 {[%emt 00:00:01] [%clk 00:13:54]} 17. c5 {[%emt
00:01:27] [%clk 00:13:52]} bxc5 {[%emt 00:00:44] [%clk 00:13:20]} 18. dxc5
{[%emt 00:00:02] [%clk 00:14:01]} Nxc5 {[%emt 00:00:34] [%clk 00:12:56]} 19. b4
{[%emt 00:00:01] [%clk 00:14:10]} Na6 {[%emt 00:02:28]} 20. Qc6 {[%clk
00:11:59]} Qe8 {[%emt 00:01:01] [%clk 00:12:05]} 21. Nd4 {[%emt 00:01:09] [%clk
00:11:01]} Qxc6 {[%emt 00:04:14] [%clk 00:08:02]} 22. Nxc6 {[%emt 00:00:02]
[%clk 00:11:09]} a4 {[%emt 00:00:03] [%clk 00:08:10]} 23. Rac1 {[%emt 00:00:13]
[%clk 00:11:04]} Kf7 {[%emt 00:00:42] [%clk 00:07:39]} 24. Rc3 {[%emt 00:00:06]
[%clk 00:11:09]} Ke8 {[%emt 00:00:42] [%clk 00:07:06]} 25. Rd1 {[%emt 00:00:36]
[%clk 00:10:43]} Rf7 {[%emt 00:01:19] [%clk 00:05:57]} 26. f4 {[%emt 00:00:21]
[%clk 00:10:33]} Rd7 {[%emt 00:00:11] [%clk 00:05:55]} 27. Rdc1 {[%emt 00:00:40]
[%clk 00:10:04]} h6 {[%emt 00:00:22] [%clk 00:05:42]} 28. Kf2 {[%emt 00:00:09]
[%clk 00:10:06]} g5 {[%emt 00:00:09] [%clk 00:05:43]} 29. g3 {[%clk 00:10:15]}
Rg7 {[%emt 00:01:30] [%clk 00:04:23]} 30. Rd1 {[%emt 00:00:02] [%clk 00:10:25]}
Kd7 {[%emt 00:00:28] [%clk 00:04:04]} 31. b5 {[%emt 00:01:46] [%clk 00:08:49]}
Nb8 {[%emt 00:00:15] [%clk 00:03:58]} 32. Rd4 {[%emt 00:00:52] [%clk 00:08:08]}
Nxc6 {[%emt 00:00:23] [%clk 00:03:45]} 33. bxc6+ {[%emt 00:00:05] [%clk
00:08:13]} Ke7 {[%emt 00:00:03] [%clk 00:03:52]} 34. Rb4 {[%emt 00:00:03] [%clk
00:08:22]} d5 {[%emt 00:00:16] [%clk 00:03:45]} 35. Ke2 {[%emt 00:01:12] [%clk
00:07:20]} Kd6 {[%emt 00:00:05] [%clk 00:03:49]} 36. Kd3 {[%emt 00:00:01] [%clk
00:07:30]} Rgg8 {[%emt 00:00:07] [%clk 00:03:52]} 37. fxg5 {[%emt 00:01:52]
[%clk 00:05:48]} hxg5 {[%emt 00:00:02] [%clk 00:03:59]} 38. g4 {[%emt 00:00:02]
[%clk 00:05:57]} Rgb8 {[%emt 00:00:37] [%clk 00:03:32]} 39. Rxb8 {[%emt
00:00:51] [%clk 00:05:16]} Rxb8 {[%emt 00:00:01] [%clk 00:03:40]} 40. gxf5
{[%emt 00:00:02] [%clk 00:05:25]} exf5 {[%emt 00:00:03] [%clk 00:03:47]} 41. Kd4
{[%emt 00:00:26] [%clk 00:05:09]} Rb2 {[%emt 00:00:15] [%clk 00:03:41]} 42. h3
{[%emt 00:00:24] [%clk 00:04:55]} Rd2+ {[%emt 00:00:02] [%clk 00:03:48]} 0-1

[Site "Europe Echecs"]